[Event "Early-Titled-Tuesday-Blitz-May-07-2024"]
[Site "Chess.com"]
[Date "2024.05.07"]
[Round "9"]
[White "Alphafischer2019"]
[Black "JJDAREK"]
[Result "1-0"]
[WhiteElo "2662"]
[BlackElo "2402"]
[TimeControl "180+1"]
[EndTime "9:50:19 PDT"]
[Termination "Alphafischer2019 won by resignation"]

1. Nf3 {[%clk 0:03:00.9]} 1... g6 {[%clk 0:02:53.3]} 2. c4 {[%clk 0:02:58.5]}
2... Bg7 {[%clk 0:02:40]} 3. Nc3 {[%clk 0:02:59]} 3... d6 {[%clk 0:02:32.7]} 4.
g3 {[%clk 0:02:56.8]} 4... Nf6 {[%clk 0:02:30.3]} 5. Bg2 {[%clk 0:02:54.8]} 5...
O-O {[%clk 0:02:30.9]} 6. O-O {[%clk 0:02:53.7]} 6... c6 {[%clk 0:02:30.3]} 7.
d4 {[%clk 0:02:53.7]} 7... Bf5 {[%clk 0:02:28]} 8. Nh4 {[%clk 0:02:49]} 8... Be6
{[%clk 0:02:26.2]} 9. d5 {[%clk 0:02:47.9]} 9... cxd5 {[%clk 0:02:26.6]} 10.
cxd5 {[%clk 0:02:48.8]} 10... Bd7 {[%clk 0:02:26.6]} 11. e4 {[%clk 0:02:48.9]}
11... a5 {[%clk 0:02:14.7]} 12. Nf3 {[%clk 0:02:46.4]} 12... Na6 {[%clk
0:02:13.9]} 13. Nd4 {[%clk 0:02:44.7]} 13... Nc5 {[%clk 0:02:13]} 14. Re1 {[%clk
0:02:42.4]} 14... Qb8 {[%clk 0:01:58.6]} 15. Bf4 {[%clk 0:02:40.3]} 15... Nh5
{[%clk 0:01:32]} 16. Be3 {[%clk 0:02:39.5]} 16... b5 {[%clk 0:01:31.1]} 17. Nc6
{[%clk 0:02:34.3]} 17... Bxc6 {[%clk 0:01:30.2]} 18. dxc6 {[%clk 0:02:35.2]}
18... Bxc3 {[%clk 0:01:04]} 19. bxc3 {[%clk 0:02:33.8]} 19... Qc7 {[%clk
0:00:50.5]} 20. e5 {[%clk 0:02:33.4]} 20... Na4 {[%clk 0:00:42.8]} 21. exd6
{[%clk 0:02:31.8]} 21... exd6 {[%clk 0:00:43.7]} 22. Qd4 {[%clk 0:02:31]} 22...
Ng7 {[%clk 0:00:36.4]} 23. g4 {[%clk 0:02:28]} 23... Ne6 {[%clk 0:00:32.8]} 24.
Qd2 {[%clk 0:02:26.3]} 24... Rfd8 {[%clk 0:00:29.5]} 25. Rad1 {[%clk 0:02:23]}
25... Nb6 {[%clk 0:00:26.7]} 26. Bh6 {[%clk 0:02:20.4]} 26... Nc4 {[%clk
0:00:25.5]} 27. Qd5 {[%clk 0:02:20.4]} 27... Rab8 {[%clk 0:00:16.4]} 28. Rxe6
{[%clk 0:02:19.5]} 28... fxe6 {[%clk 0:00:16.2]} 29. Qxe6+ {[%clk 0:02:20.4]}
29... Qf7 {[%clk 0:00:16.4]} 30. Bd5 {[%clk 0:02:10.8]} 30... Qxe6 {[%clk
0:00:07.3]} 31. Bxe6+ {[%clk 0:02:11.7]} 31... Kh8 {[%clk 0:00:07.6]} 32. c7
{[%clk 0:02:11.2]} 32... Re8 {[%clk 0:00:07.6]} 33. cxb8=Q {[%clk 0:02:10.9]}
33... Rxb8 {[%clk 0:00:08.5]} 34. Bxc4 {[%clk 0:02:09.8]} 34... bxc4 {[%clk
0:00:08.1]} 35. Rxd6 {[%clk 0:02:10.7]} 1-0

[Event "Early-Titled-Tuesday-Blitz-May-07-2024"]
[Site "Chess.com"]
[Date "2024.05.07"]
[Round "9"]
[White "Shuvalov"]
[Black "H3nriqueTV"]
[Result "1-0"]
[WhiteElo "2573"]
[BlackElo "2426"]
[TimeControl "180+1"]
[EndTime "9:50:22 PDT"]
[Termination "Shuvalov won by resignation"]

1. b4 {[%clk 0:03:00.9]} 1... d5 {[%clk 0:01:57.1]} 2. Bb2 {[%clk 0:02:58.5]}
2... c6 {[%clk 0:01:54.3]} 3. e3 {[%clk 0:02:53.1]} 3... Nf6 {[%clk 0:01:54]} 4.
h3 {[%clk 0:02:47.7]} 4... h6 {[%clk 0:01:52]} 5. g4 {[%clk 0:02:42.1]} 5... e5
{[%clk 0:01:45]} 6. Bxe5 {[%clk 0:02:39]} 6... Bxb4 {[%clk 0:01:44.8]} 7. Qc1
{[%clk 0:02:36.9]} 7... Bd6 {[%clk 0:01:44.2]} 8. Qb2 {[%clk 0:02:34.8]} 8...
Bxe5 {[%clk 0:01:41]} 9. Qxe5+ {[%clk 0:02:35.7]} 9... Be6 {[%clk 0:01:41.2]}
10. Nc3 {[%clk 0:02:26.9]} 10... Nbd7 {[%clk 0:01:41.2]} 11. Qd6 {[%clk
0:02:25.6]} 11... Qa5 {[%clk 0:01:34.2]} 12. Rb1 {[%clk 0:02:19.8]} 12... Nb6
{[%clk 0:01:30.2]} 13. Nf3 {[%clk 0:01:52.9]} 13... Rd8 {[%clk 0:01:23.1]} 14.
Qc7 {[%clk 0:01:44.4]} 14... O-O {[%clk 0:01:21.4]} 15. Qxb7 {[%clk 0:01:40.1]}
15... Rfe8 {[%clk 0:00:36.9]} 16. Nd4 {[%clk 0:01:29]} 16... Nc4 {[%clk
0:00:24.3]} 17. Bxc4 {[%clk 0:01:24.3]} 17... dxc4 {[%clk 0:00:24.7]} 18. Nxc6
{[%clk 0:01:23.6]} 18... Qe5 {[%clk 0:00:15.3]} 19. Nxe5 {[%clk 0:01:21.6]} 1-0

[Event "Early-Titled-Tuesday-Blitz-May-07-2024"]
[Site "Chess.com"]
[Date "2024.05.07"]
[Round "9"]
[White "Yeritsyaan"]
[Black "Lucky_Puncher"]
[Result "1-0"]
[WhiteElo "2720"]
[BlackElo "2552"]
[TimeControl "180+1"]
[EndTime "9:50:23 PDT"]
[Termination "Yeritsyaan won by resignation"]

1. g3 {[%clk 0:03:00.9]} 1... g6 {[%clk 0:02:51.9]} 2. Bg2 {[%clk 0:03:00.8]}
2... Bg7 {[%clk 0:02:52.7]} 3. e4 {[%clk 0:03:01.3]} 3... c5 {[%clk 0:02:49.5]}
4. d3 {[%clk 0:02:57.6]} 4... b5 {[%clk 0:02:49.6]} 5. Ne2 {[%clk 0:02:54.3]}
5... Bb7 {[%clk 0:02:49.5]} 6. O-O {[%clk 0:02:53.9]} 6... e6 {[%clk 0:02:49.5]}
7. c3 {[%clk 0:02:51.8]} 7... Ne7 {[%clk 0:02:48.7]} 8. f4 {[%clk 0:02:50.5]}
8... O-O {[%clk 0:02:47.4]} 9. Be3 {[%clk 0:02:47.1]} 9... d6 {[%clk 0:02:47.4]}
10. Nd2 {[%clk 0:02:46.3]} 10... Nd7 {[%clk 0:02:45.5]} 11. Nf3 {[%clk
0:02:41.5]} 11... f5 {[%clk 0:02:44.5]} 12. Ng5 {[%clk 0:02:40.3]} 12... Qb6
{[%clk 0:02:05.2]} 13. Nxe6 {[%clk 0:02:39.1]} 13... Rfe8 {[%clk 0:02:05.7]} 14.
Nxg7 {[%clk 0:02:33.1]} 14... Kxg7 {[%clk 0:02:02.7]} 15. Qd2 {[%clk 0:02:33.3]}
15... Nf6 {[%clk 0:01:52.9]} 16. e5 {[%clk 0:02:31.8]} 16... Ng4 {[%clk
0:01:40.4]} 17. d4 {[%clk 0:02:17]} 17... Bxg2 {[%clk 0:01:37.8]} 18. Kxg2
{[%clk 0:02:17.9]} 18... dxe5 {[%clk 0:01:35.4]} 19. fxe5 {[%clk 0:02:17.1]}
19... Nd5 {[%clk 0:01:26.5]} 20. Bf4 {[%clk 0:01:54.9]} 20... cxd4 {[%clk
0:01:26.1]} 21. Nxd4 {[%clk 0:01:52.9]} 21... Rad8 {[%clk 0:01:17.6]} 22. Rae1
{[%clk 0:01:51.2]} 22... Qb7 {[%clk 0:01:12.1]} 23. Kg1 {[%clk 0:01:50.7]} 23...
Nxf4 {[%clk 0:00:54.7]} 24. Qxf4 {[%clk 0:01:47.5]} 24... Qd5 {[%clk 0:00:50.8]}
25. e6 {[%clk 0:01:43.6]} 25... Nf6 {[%clk 0:00:51.2]} 26. Re5 {[%clk 0:01:39]}
26... Qxa2 {[%clk 0:00:49.9]} 27. Nxf5+ {[%clk 0:01:39.5]} 27... Kh8 {[%clk
0:00:45.8]} 28. Nh6 {[%clk 0:01:37.3]} 28... Nh5 {[%clk 0:00:33.8]} 29. Rxh5
{[%clk 0:01:36.2]} 1-0

[Event "Early-Titled-Tuesday-Blitz-May-07-2024"]
[Site "Chess.com"]
[Date "2024.05.07"]
[Round "9"]
[White "TrompeterImEther"]
[Black "ReinisUz"]
[Result "0-1"]
[WhiteElo "2588"]
[BlackElo "2461"]
[TimeControl "180+1"]
[EndTime "9:50:30 PDT"]
[Termination "ReinisUz won by resignation"]

1. e4 {[%clk 0:03:00.9]} 1... e5 {[%clk 0:02:57.2]} 2. Nf3 {[%clk 0:03:00.9]}
2... Nc6 {[%clk 0:02:57.6]} 3. Bb5 {[%clk 0:03:00.7]} 3... g6 {[%clk 0:02:57.3]}
4. O-O {[%clk 0:02:58.7]} 4... Bg7 {[%clk 0:02:57.2]} 5. c3 {[%clk 0:02:59.3]}
5... a6 {[%clk 0:02:57.1]} 6. Ba4 {[%clk 0:02:59.4]} 6... Nge7 {[%clk
0:02:57.4]} 7. d4 {[%clk 0:02:59]} 7... exd4 {[%clk 0:02:58]} 8. cxd4 {[%clk
0:02:59]} 8... b5 {[%clk 0:02:58.7]} 9. Bb3 {[%clk 0:02:58.3]} 9... O-O {[%clk
0:02:58.6]} 10. a4 {[%clk 0:02:53.7]} 10... Bb7 {[%clk 0:02:50.6]} 11. Re1
{[%clk 0:02:44.9]} 11... Na5 {[%clk 0:02:49]} 12. Bc2 {[%clk 0:02:43.8]} 12...
d6 {[%clk 0:02:46.9]} 13. Nc3 {[%clk 0:02:10.8]} 13... b4 {[%clk 0:02:44.6]} 14.
Ne2 {[%clk 0:02:09.2]} 14... c5 {[%clk 0:02:44.5]} 15. b3 {[%clk 0:02:09]} 15...
Rc8 {[%clk 0:02:35.4]} 16. Bd2 {[%clk 0:02:03.2]} 16... Qb6 {[%clk 0:02:30.8]}
17. dxc5 {[%clk 0:01:51.5]} 17... dxc5 {[%clk 0:02:28.2]} 18. Rb1 {[%clk
0:01:51.6]} 18... Nec6 {[%clk 0:02:27.5]} 19. Be3 {[%clk 0:01:49.7]} 19... Rfd8
{[%clk 0:02:26.4]} 20. Qc1 {[%clk 0:01:49.5]} 20... Nd4 {[%clk 0:02:25.4]} 21.
Bxd4 {[%clk 0:01:47.4]} 21... cxd4 {[%clk 0:02:26.3]} 22. Qd2 {[%clk 0:01:37.9]}
22... d3 {[%clk 0:02:15.2]} 23. Bxd3 {[%clk 0:01:37.3]} 23... Bxe4 {[%clk
0:02:15.6]} 24. Nf4 {[%clk 0:01:37.6]} 24... Bxd3 {[%clk 0:02:15.5]} 25. Nxd3
{[%clk 0:01:38.3]} 25... Rc3 {[%clk 0:02:12.1]} 26. Re3 {[%clk 0:00:41.7]} 26...
Qd6 {[%clk 0:01:51.4]} 27. Rd1 {[%clk 0:00:33.6]} 27... Bh6 {[%clk 0:01:49.6]}
28. Nfe1 {[%clk 0:00:32.5]} 28... Bxe3 {[%clk 0:01:47.6]} 29. Qxe3 {[%clk
0:00:33.4]} 29... Nxb3 {[%clk 0:01:46.3]} 30. g3 {[%clk 0:00:26]} 30... Nc5
{[%clk 0:01:43.2]} 31. Nxc5 {[%clk 0:00:12]} 31... Rxe3 {[%clk 0:01:42.5]} 0-1

[Event "Early-Titled-Tuesday-Blitz-May-07-2024"]
[Site "Chess.com"]
[Date "2024.05.07"]
[Round "9"]
[White "Gryffindorac8"]
[Black "Kostukov_Alex"]
[Result "0-1"]
[WhiteElo "2500"]
[BlackElo "2380"]
[TimeControl "180+1"]
[EndTime "9:50:34 PDT"]
[Termination "Kostukov_Alex won by resignation"]

1. d4 {[%clk 0:03:00.9]} 1... g6 {[%clk 0:02:58.8]} 2. e4 {[%clk 0:02:58.2]}
2... c5 {[%clk 0:02:54.9]} 3. c3 {[%clk 0:02:49.4]} 3... cxd4 {[%clk 0:02:54.3]}
4. cxd4 {[%clk 0:02:50.3]} 4... d5 {[%clk 0:02:54.5]} 5. e5 {[%clk 0:02:45.7]}
5... Bg7 {[%clk 0:02:54.7]} 6. Nc3 {[%clk 0:02:45.8]} 6... Nc6 {[%clk
0:02:54.6]} 7. Nf3 {[%clk 0:02:45.8]} 7... Bg4 {[%clk 0:02:52.2]} 8. Be2 {[%clk
0:02:44.8]} 8... Nh6 {[%clk 0:02:51.4]} 9. O-O {[%clk 0:02:34.8]} 9... Nf5
{[%clk 0:02:48.3]} 10. Be3 {[%clk 0:02:24.1]} 10... O-O {[%clk 0:02:43.8]} 11.
h3 {[%clk 0:02:23.6]} 11... Bxf3 {[%clk 0:02:43.4]} 12. Bxf3 {[%clk 0:02:24.5]}
12... e6 {[%clk 0:02:43.9]} 13. Bg4 {[%clk 0:02:12.7]} 13... Nxe3 {[%clk
0:02:38.8]} 14. fxe3 {[%clk 0:02:13.6]} 14... Qg5 {[%clk 0:02:34.8]} 15. Qe2
{[%clk 0:02:03.3]} 15... h5 {[%clk 0:02:32.5]} 16. Bf3 {[%clk 0:02:02.4]} 16...
f6 {[%clk 0:02:33.1]} 17. exf6 {[%clk 0:01:56.2]} 17... Rxf6 {[%clk 0:02:32.8]}
18. Rad1 {[%clk 0:01:43.5]} 18... Raf8 {[%clk 0:02:20.2]} 19. Qd3 {[%clk
0:01:11]} 19... Rxf3 {[%clk 0:02:15]} 20. Rxf3 {[%clk 0:00:51.2]} 20... Rxf3
{[%clk 0:02:12.3]} 21. Re1 {[%clk 0:00:36.6]} 21... Bxd4 {[%clk 0:01:52.1]} 22.
Nd1 {[%clk 0:00:34.8]} 22... Qg3 {[%clk 0:01:44.1]} 23. Qe2 {[%clk 0:00:26]}
23... Be5 {[%clk 0:01:20.7]} 0-1

[Event "Early-Titled-Tuesday-Blitz-May-07-2024"]
[Site "Chess.com"]
[Date "2024.05.07"]
[Round "9"]
[White "lefonghua"]
[Black "FREDERICKtheMATE"]
[Result "1/2-1/2"]
[WhiteElo "2578"]
[BlackElo "2692"]
[TimeControl "180+1"]
[EndTime "9:50:43 PDT"]
[Termination "Game drawn by repetition"]

1. d4 {[%clk 0:03:00.9]} 1... Nf6 {[%clk 0:03:00.6]} 2. c4 {[%clk 0:03:00.5]}
2... g6 {[%clk 0:03:01.3]} 3. Nc3 {[%clk 0:02:58]} 3... Bg7 {[%clk 0:03:01.4]}
4. e4 {[%clk 0:02:58.1]} 4... d6 {[%clk 0:03:01.5]} 5. f4 {[%clk 0:02:58.5]}
5... O-O {[%clk 0:03:01.2]} 6. Nf3 {[%clk 0:02:58.5]} 6... c5 {[%clk 0:02:59.6]}
7. d5 {[%clk 0:02:58.8]} 7... e5 {[%clk 0:02:58.2]} 8. fxe5 {[%clk 0:02:55.7]}
8... Ng4 {[%clk 0:02:58.2]} 9. Bf4 {[%clk 0:02:45.5]} 9... Nxe5 {[%clk
0:02:54.6]} 10. Nxe5 {[%clk 0:02:43.8]} 10... Bxe5 {[%clk 0:02:55.5]} 11. Bxe5
{[%clk 0:02:42.1]} 11... dxe5 {[%clk 0:02:56.4]} 12. Qf3 {[%clk 0:02:24.8]}
12... a6 {[%clk 0:02:55.2]} 13. a4 {[%clk 0:02:23.5]} 13... Qd6 {[%clk
0:02:53.8]} 14. Bd3 {[%clk 0:02:17.3]} 14... Kg7 {[%clk 0:02:51.9]} 15. O-O
{[%clk 0:02:17]} 15... Nd7 {[%clk 0:02:51.9]} 16. a5 {[%clk 0:02:15]} 16... Nf6
{[%clk 0:02:50.8]} 17. Na4 {[%clk 0:02:04]} 17... Bd7 {[%clk 0:02:50.8]} 18. Nb6
{[%clk 0:02:04]} 18... Rad8 {[%clk 0:02:50.8]} 19. Be2 {[%clk 0:01:57.6]} 19...
Bg4 {[%clk 0:02:47.9]} 20. Qxf6+ {[%clk 0:01:43.7]} 20... Qxf6 {[%clk
0:02:47.8]} 21. Rxf6 {[%clk 0:01:44.6]} 21... Bxe2 {[%clk 0:02:45.5]} 22. Rf2
{[%clk 0:01:44.6]} 22... Bg4 {[%clk 0:02:44.6]} 23. h3 {[%clk 0:01:37.6]} 23...
Bd7 {[%clk 0:02:42.9]} 24. b4 {[%clk 0:01:32.3]} 24... cxb4 {[%clk 0:02:40.2]}
25. Rb1 {[%clk 0:01:30.6]} 25... f5 {[%clk 0:02:40.6]} 26. exf5 {[%clk 0:01:30]}
26... Bxf5 {[%clk 0:02:41.2]} 27. Rxb4 {[%clk 0:01:29.4]} 27... e4 {[%clk
0:02:37.3]} 28. c5 {[%clk 0:01:23.7]} 28... Rfe8 {[%clk 0:02:36.7]} 29. Re2
{[%clk 0:01:20.5]} 29... h5 {[%clk 0:02:34.3]} 30. g4 {[%clk 0:01:09.7]} 30...
hxg4 {[%clk 0:02:33.8]} 31. hxg4 {[%clk 0:01:10.6]} 31... Bxg4 {[%clk
0:02:33.9]} 32. Rexe4 {[%clk 0:01:10.4]} 32... Rxe4 {[%clk 0:02:31.4]} 33. Rxe4
{[%clk 0:01:11.3]} 33... Bf3 {[%clk 0:02:31.6]} 34. Re3 {[%clk 0:01:03.3]} 34...
Rf8 {[%clk 0:02:25.2]} 35. Re7+ {[%clk 0:00:59.9]} 35... Rf7 {[%clk 0:02:24.5]}
36. Re8 {[%clk 0:00:44.7]} 36... Rf8 {[%clk 0:02:09.7]} 37. Re3 {[%clk
0:00:42.4]} 37... g5 {[%clk 0:02:06.8]} 38. d6 {[%clk 0:00:40.7]} 38... Bc6
{[%clk 0:02:05.2]} 39. d7 {[%clk 0:00:37.8]} 39... Rd8 {[%clk 0:02:03]} 40. Rd3
{[%clk 0:00:32.9]} 40... Kf6 {[%clk 0:02:01.4]} 41. Rd6+ {[%clk 0:00:30.5]}
41... Ke7 {[%clk 0:01:59]} 42. Nc8+ {[%clk 0:00:26.2]} 42... Kf7 {[%clk
0:01:57.5]} 43. Nb6 {[%clk 0:00:20.2]} 43... g4 {[%clk 0:01:54.7]} 44. Kf2
{[%clk 0:00:20.1]} 44... Ke7 {[%clk 0:01:54.5]} 45. Nc8+ {[%clk 0:00:19.8]}
45... Kf7 {[%clk 0:01:54.5]} 46. Nb6 {[%clk 0:00:20.2]} 46... Ke7 {[%clk
0:01:53.8]} 47. Nc8+ {[%clk 0:00:20.6]} 47... Kf7 {[%clk 0:01:53.6]} 48. Nb6
{[%clk 0:00:20.3]} 1/2-1/2

[Event "Early-Titled-Tuesday-Blitz-May-07-2024"]
[Site "Chess.com"]
[Date "2024.05.07"]
[Round "9"]
[White "Kunalm64"]
[Black "secretsuperstar7"]
[Result "1-0"]
[WhiteElo "2616"]
[BlackElo "2470"]
[TimeControl "180+1"]
[EndTime "9:50:45 PDT"]
[Termination "Kunalm64 won by checkmate"]

1. e4 {[%clk 0:02:50.7]} 1... c5 {[%clk 0:02:59.4]} 2. Nf3 {[%clk 0:02:49.2]}
2... d6 {[%clk 0:02:58.8]} 3. Bb5+ {[%clk 0:02:49.9]} 3... Bd7 {[%clk
0:02:57.2]} 4. Bxd7+ {[%clk 0:02:49.3]} 4... Nxd7 {[%clk 0:02:57.4]} 5. O-O
{[%clk 0:02:49]} 5... Ngf6 {[%clk 0:02:57.4]} 6. Qe2 {[%clk 0:02:49.2]} 6... g6
{[%clk 0:02:57.1]} 7. c3 {[%clk 0:02:48.8]} 7... Bg7 {[%clk 0:02:56.9]} 8. d4
{[%clk 0:02:49.3]} 8... O-O {[%clk 0:02:52.9]} 9. e5 {[%clk 0:02:48.2]} 9... Ne8
{[%clk 0:02:39.6]} 10. Bf4 {[%clk 0:02:44.8]} 10... dxe5 {[%clk 0:02:33.5]} 11.
dxe5 {[%clk 0:02:44.8]} 11... Nc7 {[%clk 0:02:33.1]} 12. Nbd2 {[%clk 0:02:44]}
12... Ne6 {[%clk 0:02:30]} 13. Bg3 {[%clk 0:02:44.3]} 13... Qc7 {[%clk
0:02:21.5]} 14. a4 {[%clk 0:02:42.5]} 14... Rab8 {[%clk 0:02:15]} 15. Nc4 {[%clk
0:02:42.3]} 15... b6 {[%clk 0:02:13.9]} 16. Rfd1 {[%clk 0:02:34.5]} 16... Rfd8
{[%clk 0:02:11.3]} 17. Bh4 {[%clk 0:02:30.5]} 17... Re8 {[%clk 0:02:06.6]} 18.
Qe4 {[%clk 0:02:29.2]} 18... a6 {[%clk 0:02:02.5]} 19. Bg3 {[%clk 0:02:22.2]}
19... b5 {[%clk 0:01:55.4]} 20. axb5 {[%clk 0:02:21.3]} 20... axb5 {[%clk
0:01:55.5]} 21. Ne3 {[%clk 0:02:21.8]} 21... Nb6 {[%clk 0:01:51.7]} 22. Nd5
{[%clk 0:02:15.9]} 22... Qb7 {[%clk 0:01:49]} 23. b3 {[%clk 0:02:08.4]} 23... c4
{[%clk 0:01:02.1]} 24. bxc4 {[%clk 0:01:47]} 24... Nxc4 {[%clk 0:00:32.5]} 25.
Qe2 {[%clk 0:01:45.4]} 25... Red8 {[%clk 0:00:23.9]} 26. Nb4 {[%clk 0:01:45]}
26... Nc5 {[%clk 0:00:20.1]} 27. e6 {[%clk 0:01:43.7]} 27... Nxe6 {[%clk
0:00:10.6]} 28. Bxb8 {[%clk 0:01:43.4]} 28... Rxb8 {[%clk 0:00:09.2]} 29. Nd5
{[%clk 0:01:42.8]} 29... Rd8 {[%clk 0:00:05.3]} 30. Qe4 {[%clk 0:01:42.7]} 30...
Nc5 {[%clk 0:00:03.9]} 31. Nxe7+ {[%clk 0:01:40.1]} 31... Kf8 {[%clk 0:00:03.8]}
32. Rxd8# {[%clk 0:01:39.7]} 1-0

[Event "Early-Titled-Tuesday-Blitz-May-07-2024"]
[Site "Chess.com"]
[Date "2024.05.07"]
[Round "9"]
[White "giovannibrandao7"]
[Black "viktorgen2021"]
[Result "0-1"]
[WhiteElo "2322"]
[BlackElo "2505"]
[TimeControl "180+1"]
[EndTime "9:50:45 PDT"]
[Termination "viktorgen2021 won by resignation"]

1. e4 {[%clk 0:03:00.9]} 1... d5 {[%clk 0:02:57.6]} 2. exd5 {[%clk 0:03:00.7]}
2... Nf6 {[%clk 0:02:57.2]} 3. d4 {[%clk 0:03:00.1]} 3... Bg4 {[%clk 0:02:56.4]}
4. Be2 {[%clk 0:03:00]} 4... Bxe2 {[%clk 0:02:55.2]} 5. Qxe2 {[%clk 0:02:58.3]}
5... Qxd5 {[%clk 0:02:56.1]} 6. Nf3 {[%clk 0:02:58.3]} 6... e6 {[%clk
0:02:51.4]} 7. O-O {[%clk 0:02:58.2]} 7... Nbd7 {[%clk 0:02:47.6]} 8. c4 {[%clk
0:02:58.2]} 8... Qh5 {[%clk 0:02:46.3]} 9. Nc3 {[%clk 0:02:57.9]} 9... c6 {[%clk
0:02:45]} 10. Bf4 {[%clk 0:02:57.2]} 10... Be7 {[%clk 0:02:44.4]} 11. Rae1
{[%clk 0:02:55.1]} 11... O-O {[%clk 0:02:43.7]} 12. h3 {[%clk 0:02:36.5]} 12...
Rfe8 {[%clk 0:02:38.9]} 13. Qe3 {[%clk 0:02:15.9]} 13... Rad8 {[%clk 0:02:31.5]}
14. Re2 {[%clk 0:02:10.2]} 14... c5 {[%clk 0:02:26.1]} 15. Rd1 {[%clk
0:01:53.1]} 15... cxd4 {[%clk 0:02:24.3]} 16. Nxd4 {[%clk 0:01:53.2]} 16... Bc5
{[%clk 0:02:14.1]} 17. Qf3 {[%clk 0:01:03.3]} 17... Nb6 {[%clk 0:02:03.2]} 18.
Qxh5 {[%clk 0:00:31.9]} 18... Nxh5 {[%clk 0:02:03.9]} 19. Be3 {[%clk 0:00:26]}
19... Nxc4 {[%clk 0:02:03.1]} 20. Nxe6 {[%clk 0:00:18.6]} 20... Rxd1+ {[%clk
0:01:59]} 21. Nxd1 {[%clk 0:00:17.2]} 21... Rxe6 {[%clk 0:01:54.4]} 22. Rc2
{[%clk 0:00:16.2]} 22... b5 {[%clk 0:01:44.5]} 23. Bxc5 {[%clk 0:00:02.9]} 23...
Re1+ {[%clk 0:01:43.8]} 24. Kh2 {[%clk 0:00:03.7]} 24... Rxd1 {[%clk 0:01:43.7]}
25. b3 {[%clk 0:00:04]} 25... Nd2 {[%clk 0:01:28]} 26. Be3 {[%clk 0:00:02.9]}
26... Nf1+ {[%clk 0:01:28.1]} 27. Kg1 {[%clk 0:00:02.7]} 27... Nxe3+ {[%clk
0:01:28.5]} 0-1

[Event "Early-Titled-Tuesday-Blitz-May-07-2024"]
[Site "Chess.com"]
[Date "2024.05.07"]
[Round "9"]
[White "tetrix83"]
[Black "thesupera12"]
[Result "1-0"]
[WhiteElo "2684"]
[BlackElo "2478"]
[TimeControl "180+1"]
[EndTime "9:50:47 PDT"]
[Termination "tetrix83 won by resignation"]

1. e4 {[%clk 0:03:00.9]} 1... d5 {[%clk 0:02:56.1]} 2. exd5 {[%clk 0:02:58.4]}
2... Qxd5 {[%clk 0:02:57]} 3. Nc3 {[%clk 0:02:57.6]} 3... Qa5 {[%clk 0:02:57.6]}
4. d4 {[%clk 0:02:57.5]} 4... Nf6 {[%clk 0:02:58.3]} 5. Nf3 {[%clk 0:02:55.6]}
5... Bg4 {[%clk 0:02:58.9]} 6. h3 {[%clk 0:02:55.5]} 6... Bxf3 {[%clk
0:02:59.2]} 7. Qxf3 {[%clk 0:02:55.1]} 7... c6 {[%clk 0:02:59.8]} 8. Bc4 {[%clk
0:02:52]} 8... Nbd7 {[%clk 0:02:58.8]} 9. O-O {[%clk 0:02:50.6]} 9... e6 {[%clk
0:02:58.9]} 10. Re1 {[%clk 0:02:45.8]} 10... O-O-O {[%clk 0:02:56.5]} 11. a3
{[%clk 0:02:44.8]} 11... Nb6 {[%clk 0:02:56.1]} 12. Bd3 {[%clk 0:01:30.8]} 12...
Rxd4 {[%clk 0:02:53.2]} 13. Be3 {[%clk 0:01:26.5]} 13... Rd7 {[%clk 0:02:50.8]}
14. b4 {[%clk 0:01:19.1]} 14... Qh5 {[%clk 0:02:50.4]} 15. g4 {[%clk 0:01:19.1]}
15... Qh4 {[%clk 0:02:42.3]} 16. b5 {[%clk 0:01:19.4]} 16... Nfd5 {[%clk
0:02:37.5]} 17. bxc6 {[%clk 0:01:17.1]} 17... bxc6 {[%clk 0:02:36.3]} 18. Ba6+
{[%clk 0:01:16.9]} 18... Kc7 {[%clk 0:02:34.2]} 19. Ne4 {[%clk 0:01:07.1]} 19...
Nxe3 {[%clk 0:02:31.6]} 20. Qxe3 {[%clk 0:01:01]} 20... h5 {[%clk 0:02:25.6]}
21. Rad1 {[%clk 0:00:49.8]} 21... Rxd1 {[%clk 0:02:22.5]} 22. Rxd1 {[%clk
0:00:48.9]} 22... e5 {[%clk 0:02:00.7]} 23. Ng5 {[%clk 0:00:44.2]} 23... Bd6
{[%clk 0:01:18.6]} 24. Rxd6 {[%clk 0:00:39.5]} 24... Kxd6 {[%clk 0:01:18.8]} 25.
Nxf7+ {[%clk 0:00:39.7]} 25... Ke6 {[%clk 0:01:19.1]} 26. Nxh8 {[%clk
0:00:29.3]} 26... hxg4 {[%clk 0:01:19.1]} 27. Ng6 {[%clk 0:00:28.8]} 27... Qh5
{[%clk 0:01:04.8]} 28. Nf4+ {[%clk 0:00:26.5]} 1-0

[Event "Early-Titled-Tuesday-Blitz-May-07-2024"]
[Site "Chess.com"]
[Date "2024.05.07"]
[Round "9"]
[White "NastyaHn"]
[Black "manitodeplomo"]
[Result "0-1"]
[WhiteElo "2468"]
[BlackElo "2607"]
[TimeControl "180+1"]
[EndTime "9:50:48 PDT"]
[Termination "manitodeplomo won on time"]

1. Nc3 {[%clk 0:03:00.9]} 1... g6 {[%clk 0:02:54]} 2. e4 {[%clk 0:02:55.3]} 2...
Bg7 {[%clk 0:02:54.3]} 3. d4 {[%clk 0:02:54.9]} 3... c5 {[%clk 0:02:54.1]} 4.
Be3 {[%clk 0:02:35.7]} 4... Qa5 {[%clk 0:02:53.3]} 5. Nf3 {[%clk 0:02:31.2]}
5... Nf6 {[%clk 0:02:52.7]} 6. Qd2 {[%clk 0:02:30.2]} 6... Nc6 {[%clk
0:02:51.4]} 7. dxc5 {[%clk 0:02:19.1]} 7... O-O {[%clk 0:02:48.2]} 8. h3 {[%clk
0:02:15.7]} 8... b6 {[%clk 0:02:46.8]} 9. cxb6 {[%clk 0:02:14.9]} 9... axb6
{[%clk 0:02:47.7]} 10. Bc4 {[%clk 0:02:08.8]} 10... b5 {[%clk 0:02:45.3]} 11.
Bd5 {[%clk 0:01:50.7]} 11... b4 {[%clk 0:02:39.5]} 12. Nd1 {[%clk 0:01:46.2]}
12... Ba6 {[%clk 0:02:18.5]} 13. c4 {[%clk 0:01:22.5]} 13... e6 {[%clk
0:02:11.7]} 14. Bxc6 {[%clk 0:01:16.3]} 14... dxc6 {[%clk 0:02:12.6]} 15. O-O
{[%clk 0:01:16.3]} 15... Bxc4 {[%clk 0:02:07.4]} 16. Re1 {[%clk 0:01:13.6]}
16... Nxe4 {[%clk 0:02:06.6]} 17. Qc2 {[%clk 0:01:12.5]} 17... Bd5 {[%clk
0:02:05.8]} 18. Bf4 {[%clk 0:00:40.1]} 18... b3 {[%clk 0:02:01.2]} 19. Qd3
{[%clk 0:00:28.2]} 19... Qb5 {[%clk 0:01:48.3]} 20. Qxb5 {[%clk 0:00:14.2]}
20... cxb5 {[%clk 0:01:48.2]} 21. a3 {[%clk 0:00:11.5]} 21... Rfc8 {[%clk
0:01:44.6]} 22. Ne3 {[%clk 0:00:10.3]} 22... Bxb2 {[%clk 0:01:40.3]} 23. Rab1
{[%clk 0:00:10.2]} 23... Bc3 {[%clk 0:01:40.1]} 24. Red1 {[%clk 0:00:09.4]}
24... b2 {[%clk 0:01:37.4]} 25. Nxd5 {[%clk 0:00:07.8]} 25... exd5 {[%clk
0:01:38.3]} 26. Rxd5 {[%clk 0:00:08]} 26... Rxa3 {[%clk 0:01:38.4]} 27. Rdd1
{[%clk 0:00:04.4]} 27... Bf6 {[%clk 0:01:35.4]} 28. Be5 {[%clk 0:00:02.1]} 28...
Bxe5 {[%clk 0:01:32.9]} 29. Nxe5 {[%clk 0:00:01]} 29... Nc3 {[%clk 0:01:33.1]}
0-1